fUSD/lending_fUSD_20240327
["ID","MTS","AMOUNT","RATE_DAILY","PERIOD"]
[320756683,1711546264281,-1655.33,0.00055616,120]
[320756684,1711546264291,-2377.98,0.00055616,120]
[320756685,1711546264300,-2781.46,0.00055616,120]
[320756686,1711546264310,-809.96,0.00055616,120]
[320756687,1711546264319,-2002.63,0.00055616,120]
[320756688,1711546264329,-3535.71,0.00055616,120]
[320756689,1711546264338,-14759.77,0.00055616,120]
[320756690,1711546264347,-791.97,0.00055616,120]
[320756691,1711546264357,-617.38,0.00055616,120]
[320756692,1711546264373,-1559.07,0.00055616,120]
[320756693,1711546264385,-3176.79,0.00055616,120]
[320756694,1711546264396,-500.0,0.00055616,120]
[320756695,1711546264406,-675.25,0.00055616,120]
[320756696,1711546264417,-2335.04,0.00055616,120]
[320756697,1711546264426,-180.92,0.00055616,120]
[320756698,1711546264435,-1775.74,0.00055616,120]
[320756699,1711546264444,-4505.08,0.00055616,120]
[320756700,1711546264455,-500.0,0.00055616,120]
[320756701,1711546264464,-10822.87,0.00055616,120]
[320756702,1711546264474,-780.73,0.00055616,120]
[320756703,1711546264484,-619.17,0.00055616,120]
[320756704,1711546264495,-703.7,0.00055616,120]
[320756705,1711546264505,-4740.44,0.00055616,120]
[320756706,1711546264516,-1735.73,0.00055616,120]
[320756707,1711546264527,-4178.06,0.00055616,120]
[320756708,1711546264537,-2218.02,0.00055616,120]
[320756709,1711546264548,-557.85,0.00055616,120]
[320756710,1711546264560,-1843.95,0.00055616,120]
[320756711,1711546264570,-2753.07,0.00055616,120]
[320756712,1711546264581,-1883.62,0.00055616,120]
[320756713,1711546264591,-4513.67,0.00055616,120]
[320756714,1711546264600,-500.0,0.00055616,120]
[320756715,1711546264610,-30769.88,0.00055616,120]
[320756716,1711546264624,-1877.07,0.00055616,120]
[320756717,1711546264634,-500.0,0.00055616,120]
[320756718,1711546264644,-1576.26,0.00055616,120]
[320756719,1711546264653,-990.99,0.00055616,120]
[320756720,1711546264663,-1131.33,0.00055616,120]
[320756721,1711546264673,-500.0,0.00055616,120]
[320756722,1711546264682,-3993.02,0.00055616,120]
[320756723,1711546264693,-660.85,0.00055616,120]
[320756724,1711546264703,-1247.94,0.00055616,120]
[320756725,1711546264714,-3155.02,0.00055616,120]
[320756726,1711546264724,-9955.42,0.00055616,120]
[320756727,1711546264735,-500.0,0.00055616,120]
[320756728,1711546264745,-605.7,0.00055616,120]
[320756729,1711546264755,-1396.99,0.00055616,120]
[320756730,1711546264765,-3326.33,0.00055616,120]
[320756731,1711546264774,-6861.65,0.00055616,120]
[320756732,1711546264784,-500.0,0.00055616,120]
[320756733,1711546264794,-8987.1,0.00055616,120]
[320756734,1711546264804,-4570.49,0.00055616,120]
[320756735,1711546264813,-4124.1,0.00055616,120]
[320756736,1711546264824,-595.93,0.00055616,120]
[320756737,1711546264834,-531.49,0.00055616,120]
[320756738,1711546264844,-2890.55,0.00055616,120]
[320756739,1711546264858,-500.0,0.00055616,7]
[320756740,1711546264874,-13989.32,0.00055616,120]
[320756741,1711546264884,-500.0,0.00055616,120]
[320756742,1711546264894,-1228.94,0.00055616,120]
[320756743,1711546264903,-4679.66,0.00055616,120]
[320756744,1711546264912,-500.0,0.00055616,120]
[320756745,1711546264922,-3271.7,0.00055616,120]
[320756746,1711546264932,-41795.23,0.00055616,120]
[320756747,1711546264942,-2282.57,0.00055616,120]
[320756748,1711546264952,-5627.49,0.00055616,120]
[320756749,1711546264962,-500.0,0.00055616,120]
[320756750,1711546264971,-500.0,0.00055616,120]
[320756751,1711546264981,-569.04,0.00055616,120]
[320756752,1711546264991,-761.08,0.00055616,120]
[320756753,1711546265000,-5592.75,0.00055616,120]
[320756754,1711546265010,-500.0,0.00055616,120]
[320756755,1711546265020,-3670.01,0.00055616,120]
[320756756,1711546265031,-3639.14,0.00055616,120]
[320756757,1711546265041,-7743.51,0.00055616,120]
[320756758,1711546265051,-500.0,0.00055616,120]
[320756759,1711546265062,-2679.29,0.00055616,120]
[320756760,1711546265072,-657.93,0.00055616,120]
[320756761,1711546265082,-1839.6,0.00055616,120]
[320756762,1711546265093,-1315.57,0.00055616,120]
[320756763,1711546265103,-4254.04,0.00055616,120]
[320756764,1711546265117,-500.0,0.00055616,120]
[320756765,1711546265127,-10846.92,0.00055616,120]
[320756766,1711546265137,-500.0,0.00055616,85]
[320756767,1711546265148,-1768.16,0.00055616,120]
[320756768,1711546265159,-22986.29,0.00055616,120]
[320756769,1711546265169,-500.0,0.00055616,120]
[320756770,1711546265180,-3432.06,0.00055616,120]
[320756771,1711546265190,-3495.69,0.00055616,120]
[320756772,1711546265201,-1982.01,0.00055616,120]
[320756773,1711546265211,-11789.75,0.00055616,120]
[320756774,1711546265221,-3095.23,0.00055616,120]
[320756775,1711546265231,-1112.01,0.00055616,120]
[320756776,1711546265241,-1435.37,0.00055616,120]
[320756777,1711546265250,-500.0,0.00055616,120]
[320756778,1711546265260,-1604.22,0.00055616,120]
[320756779,1711546265270,-749.83,0.00055616,120]
[320756780,1711546265280,-10818.47,0.00055616,120]
[320756781,1711546265290,-2149.13,0.00055616,120]
[320756782,1711546265299,-500.0,0.00055616,120]
[320756783,1711546265309,-2348.74,0.00055616,120]
[320756784,1711546265319,-1451.12,0.00055616,21]
[320756785,1711546265330,-3081.76,0.00055616,120]
[320756786,1711546265340,-1180.95,0.00055616,120]
[320756787,1711546265350,-857.15,0.00055616,120]
[320756788,1711546265364,-2669.46,0.00055616,120]
[320756789,1711546265382,-2272.11,0.00055616,120]
[320756790,1711546265393,-1352.32,0.00055616,120]
[320756791,1711546265404,-500.0,0.00055616,120]
[320756792,1711546265415,-5503.0,0.00055616,120]
[320756793,1711546265426,-5598.25,0.00055616,120]
[320756794,1711546265436,-961.23,0.00055616,120]
[320756795,1711546265447,-2143.06,0.00055616,120]
[320756796,1711546265458,-2082.08,0.00055616,120]
[320756797,1711546265469,-1368.84,0.00055616,120]
[320756798,1711546265479,-815.9,0.00055616,120]
[320756799,1711546265490,-500.0,0.00055616,120]
[320756800,1711546265500,-1928.38,0.00055616,120]
[320756801,1711546265510,-3011.32,0.00055616,120]
[320756802,1711546265521,-1368.28,0.00055616,120]
[320756803,1711546265531,-793.86,0.00055616,120]
[320756804,1711546265541,-500.0,0.00055616,120]
[320756805,1711546265551,-7556.18,0.00055616,120]
[320756806,1711546265560,-581.46,0.00055616,120]
[320756807,1711546265570,-697.38,0.00055616,120]
[320756808,1711546265580,-500.0,0.00055616,120]
[320756809,1711546265590,-2503.39,0.00055616,120]
[320756810,1711546265600,-500.0,0.00055616,120]
[320756811,1711546265610,-8529.57,0.00055616,120]
[320756812,1711546265622,-536.2,0.00055616,120]
[320756813,1711546265632,-1917.65,0.00055616,120]
[320756814,1711546265642,-525.48,0.00055616,120]
[320756815,1711546265653,-759.45,0.00055616,120]
[320756816,1711546265663,-1477.82,0.00055616,120]
[320756817,1711546265673,-1223.91,0.00055616,120]
[320756818,1711546265683,-825.56,0.00055616,120]
[320756819,1711546265693,-1436.23,0.00055616,120]
[320756820,1711546265703,-1324.17,0.00055616,120]
[320756821,1711546265713,-500.0,0.00055616,120]
[320756822,1711546265723,-2816.8,0.00055616,120]
[320756823,1711546265733,-1465.89,0.00055616,120]
[320756824,1711546265742,-500.0,0.00055616,120]
[320756825,1711546265752,-500.0,0.00055616,120]
[320756826,1711546265762,-1390.99,0.00055616,120]
[320756827,1711546265772,-2196.4,0.00055616,120]
[320756828,1711546265782,-1853.28,0.00055616,120]
[320756829,1711546265791,-500.0,0.00055616,120]
[320756830,1711546265802,-879.78,0.00055616,120]
[320756831,1711546265812,-683.41,0.00055616,120]
[320756832,1711546265822,-2070.24,0.00055616,120]
[320756833,1711546265832,-500.0,0.00055616,120]
[320756834,1711546265842,-5083.4,0.00055616,120]
[320756835,1711546265852,-500.0,0.00055616,120]
[320756836,1711546265864,-500.0,0.00055616,120]
[320756837,1711546265874,-2530.28,0.00055616,120]
[320756838,1711546265885,-677.34,0.00055616,120]
[320756839,1711546265894,-2419.47,0.00055616,120]
[320756840,1711546265905,-500.0,0.00055616,120]
[320756841,1711546265914,-1297.52,0.00055616,120]
[320756842,1711546265924,-3660.16,0.00055616,120]
[320756843,1711546265934,-500.0,0.00055616,120]
[320756844,1711546265944,-790.69,0.00055616,120]
[320756845,1711546265954,-500.0,0.00055616,120]
[320756846,1711546265964,-635.4,0.00055616,120]
[320756847,1711546265974,-154.23237935,0.00055679,120]
[320756848,1711546265984,-415.7577203,0.00055729,14]
[320756849,1711546265994,-155.60962995,0.00055774,120]
[320756850,1711546266004,-150.0,0.000558,100]
[320756851,1711546266014,-154.23237935,0.00055811,120]
[320756852,1711546266024,-302.8,0.00055827,120]
[320756853,1711546266034,-200.0,0.00055871,120]
[320756854,1711546266044,-800.0,0.00055871,120]
[320756855,1711546266054,-500.0,0.00055871,120]
[320756856,1711546266065,-200.0,0.00055871,120]
[320756857,1711546266075,-150.0,0.00055889,120]
[320756858,1711546266086,-350.0,0.00055889,30]
[320756859,1711546266096,-150.0,0.00055889,120]
[320756860,1711546266106,-200.0,0.0005589,120]
[320756861,1711546266120,-500.0,0.0005589,120]
[320756862,1711546266130,-500.0,0.0005589,120]
[320756863,1711546266140,-500.0,0.0005589,120]
[320756864,1711546266151,-500.0,0.0005589,120]
[320756865,1711546266161,-500.0,0.0005589,120]
[320756866,1711546266171,-626.37,0.0005589,120]
[320756867,1711546266182,-500.0,0.0005589,120]
[320756868,1711546266193,-500.0,0.0005589,120]
[320756869,1711546266204,-708.09,0.0005589,120]
[320756870,1711546266215,-500.0,0.0005589,120]
[320756871,1711546266226,-500.0,0.0005589,120]
[320756872,1711546266236,-500.0,0.0005589,120]
[320756873,1711546266247,-543.86,0.0005589,120]
[320756874,1711546266257,-301.72,0.0005589,120]
[320756875,1711546266267,-500.0,0.0005589,120]
[320756876,1711546266278,-500.0,0.0005589,120]
[320756877,1711546266288,-500.0,0.0005589,120]
[320756878,1711546266300,-500.0,0.0005589,120]
[320756879,1711546266311,-500.0,0.0005589,120]
[320756880,1711546266322,-500.0,0.0005589,120]
[320756881,1711546266332,-447.45196683,0.0005589,120]
[320756882,1711546266342,-500.0,0.0005589,120]
[320756883,1711546266352,-500.0,0.0005589,120]
[320756884,1711546266362,-500.0,0.0005589,120]
[320756885,1711546266375,-735.73,0.0005589,120]
[320756886,1711546266386,-508.5,0.0005589,120]
[320756887,1711546266395,-500.0,0.0005589,120]
[320756888,1711546266406,-608.18,0.0005589,120]
[320756889,1711546266419,-497.05120333,0.0005589,120]
[320756890,1711546266430,-500.0,0.0005589,120]
[320756891,1711546266441,-500.0,0.0005589,120]
[320756892,1711546266451,-1843.65,0.0005589,120]
[320756893,1711546266462,-500.0,0.0005589,120]
[320756894,1711546266472,-500.0,0.0005589,120]
[320756895,1711546266483,-510.94,0.0005589,60]
[320756896,1711546266492,-500.0,0.0005589,120]
[320756897,1711546266503,-500.0,0.0005589,120]
[320756898,1711546266513,-500.0,0.0005589,120]
[320756899,1711546266523,-696.37,0.0005589,120]
[320756900,1711546266534,-500.0,0.0005589,120]
[320756901,1711546266544,-500.0,0.0005589,120]
[320756902,1711546266554,-500.0,0.0005589,120]
[320756903,1711546266564,-1625.34,0.0005589,120]
[320756904,1711546266577,-500.0,0.0005589,120]
[320756905,1711546266588,-500.0,0.0005589,120]
[320756906,1711546266597,-500.0,0.0005589,120]
[320756907,1711546266608,-500.0,0.0005589,120]
[320756908,1711546266621,-500.0,0.0005589,120]
[320756909,1711546266631,-500.0,0.0005589,120]
[320756910,1711546266641,-500.0,0.0005589,120]
[320756911,1711546266652,-516.17625351,0.0005589,120]
[320756912,1711546266836,-500.0,0.0005589,120]
[320756913,1711546266847,-500.0,0.0005589,120]
[320756914,1711546266857,-528.3,0.0005589,120]
[320756915,1711546266871,-500.0,0.0005589,120]
[320756916,1711546266881,-500.0,0.0005589,120]
[320756917,1711546266892,-500.0,0.0005589,120]
[320756918,1711546266902,-500.0,0.0005589,120]
[320756919,1711546266911,-500.0,0.0005589,120]
[320756920,1711546266921,-656.03,0.0005589,120]
[320756921,1711546266931,-500.0,0.0005589,120]
[320756922,1711546266941,-500.0,0.0005589,120]
[320756923,1711546266951,-1286.21,0.0005589,120]
[320756924,1711546266962,-1035.35,0.0005589,120]
[320756925,1711546266972,-1349.26,0.0005589,120]
[320756926,1711546266983,-500.0,0.0005589,120]
[320756927,1711546266994,-500.0,0.0005589,120]
[320756928,1711546267006,-725.7,0.0005589,120]
[320756929,1711546267017,-500.0,0.0005589,120]
[320756930,1711546267027,-500.0,0.0005589,120]
[320756931,1711546267037,-500.0,0.0005589,120]
[320756932,1711546267047,-500.0,0.0005589,120]
[320756933,1711546267057,-720.29,0.0005589,120]
[320756934,1711546267067,-500.0,0.0005589,120]
[320756935,1711546267077,-500.0,0.0005589,120]
[320756936,1711546267087,-679.92,0.0005589,120]
[320756937,1711546267098,-500.0,0.0005589,120]
[320756938,1711546267108,-518.87,0.0005589,120]
[320756939,1711546267120,-500.0,0.0005589,120]
[320756940,1711546267130,-500.0,0.0005589,120]
[320756941,1711546267140,-1000.0,0.0005589,120]
[320756942,1711546267150,-232.6645678,0.0005589,120]
[320756943,1711546267160,-560.6,0.0005589,120]
[320756944,1711546267171,-712.56,0.0005589,120]
[320756945,1711546267182,-500.0,0.0005589,120]
[320756946,1711546267193,-702.36,0.0005589,120]
[320756947,1711546267204,-539.02,0.0005589,120]
[320756948,1711546267215,-500.0,0.0005589,120]
[320756949,1711546267225,-500.0,0.0005589,120]
[320756950,1711546267236,-185.76,0.0005589,120]
[320756951,1711546267247,-500.0,0.0005589,120]
[320756952,1711546267257,-500.0,0.0005589,120]
[320756953,1711546267268,-500.0,0.0005589,120]
[320756954,1711546267278,-500.0,0.0005589,120]
[320756955,1711546267289,-731.02,0.0005589,120]
[320756956,1711546267299,-500.0,0.0005589,120]
[320756957,1711546267309,-500.0,0.0005589,120]
[320756958,1711546267320,-652.69,0.0005589,120]
[320756959,1711546267330,-1364.67,0.0005589,120]
[320756960,1711546267348,-500.0,0.0005589,120]
[320756961,1711546267362,-888.28,0.0005589,120]
[320756962,1711546267381,-1571.16,0.0005589,120]
[320756963,1711546267392,-524.2,0.0005589,120]
[320756964,1711546267403,-788.85,0.0005589,120]
[320756965,1711546267415,-500.0,0.0005589,120]
[320756966,1711546267425,-500.0,0.0005589,120]
[320756967,1711546267435,-606.55,0.0005589,120]
[320756968,1711546267445,-500.0,0.0005589,120]
[320756969,1711546267455,-500.0,0.0005589,120]
[320756970,1711546267465,-374.89284048,0.0005589,120]
[320756971,1711546267475,-500.0,0.0005589,120]
[320756972,1711546267485,-500.0,0.0005589,120]
[320756973,1711546267496,-979.53,0.0005589,120]
[320756974,1711546267507,-546.29,0.0005589,120]
[320756975,1711546267517,-523.62,0.0005589,120]
[320756976,1711546267527,-735.73,0.0005589,120]
[320756977,1711546267537,-1430.03,0.0005589,120]
[320756978,1711546267548,-500.0,0.0005589,120]
[320756979,1711546267559,-500.0,0.0005589,120]
[320756980,1711546267569,-512.99,0.0005589,120]
[320756981,1711546267580,-500.0,0.0005589,120]
[320756982,1711546267591,-655.53,0.0005589,120]
[320756983,1711546267601,-643.82,0.0005589,120]
[320756984,1711546267612,-500.0,0.0005589,120]
[320756985,1711546267625,-945.38,0.0005589,120]
[320756986,1711546267636,-500.0,0.0005589,120]
[320756987,1711546267647,-561.63,0.0005589,30]
[320756988,1711546267658,-500.0,0.0005589,120]
[320756989,1711546267669,-500.0,0.0005589,120]
[320756990,1711546267679,-500.0,0.0005589,120]
[320756991,1711546267690,-500.0,0.0005589,120]
[320756992,1711546267699,-1344.28,0.0005589,120]
[320756993,1711546267709,-500.0,0.0005589,120]
[320756994,1711546267719,-500.0,0.0005589,120]
[320756995,1711546267729,-988.46,0.0005589,120]
[320756996,1711546267739,-500.0,0.0005589,120]
[320756997,1711546267749,-500.0,0.0005589,120]
[320756998,1711546267758,-500.0,0.0005589,120]
[320756999,1711546267769,-600.1,0.0005589,120]
[320757000,1711546267780,-557.47,0.0005589,120]
[320757001,1711546267790,-500.0,0.0005589,120]
[320757002,1711546267800,-500.25,0.0005589,120]
[320757003,1711546267810,-500.0,0.0005589,120]
[320757004,1711546267820,-500.0,0.0005589,120]
[320757005,1711546267830,-567.33,0.0005589,120]
[320757006,1711546267840,-500.0,0.0005589,120]
[320757007,1711546267850,-500.0,0.0005589,120]
[320757008,1711546267860,-500.0,0.0005589,120]
[320757009,1711546267876,-1394.47,0.0005589,120]
[320757010,1711546267887,-590.16,0.0005589,120]
[320757011,1711546267897,-500.0,0.0005589,120]
[320757012,1711546267908,-500.0,0.0005589,120]
[320757013,1711546267921,-500.0,0.0005589,120]
[320757014,1711546267935,-500.0,0.0005589,120]
[320757015,1711546267946,-500.0,0.0005589,120]
[320757016,1711546267957,-521.11347212,0.0005589,120]
[320757017,1711546267969,-511.0,0.0005589,120]
[320757018,1711546267980,-340.34,0.0005589,120]
[320757019,1711546267992,-500.0,0.0005589,120]
[320757020,1711546268003,-365.93,0.0005589,120]
[320757021,1711546268014,-710.04,0.0005589,120]
[320757022,1711546268026,-500.0,0.0005589,120]
[320757023,1711546268036,-542.11,0.0005589,120]
[320757024,1711546268048,-506.08,0.0005589,120]
[320757025,1711546268059,-500.0,0.0005589,120]
[320757026,1711546268074,-500.0,0.0005589,120]
[320757027,1711546268086,-626.43,0.0005589,120]
[320757028,1711546268097,-500.0,0.0005589,120]
[320757029,1711546268108,-500.0,0.0005589,120]
[320757030,1711546268128,-1563.81,0.0005589,120]
[320757031,1711546268139,-500.0,0.0005589,120]
[320757032,1711546268150,-500.0,0.0005589,120]
[320757033,1711546268161,-503.76,0.0005589,120]
[320757034,1711546268173,-796.05,0.0005589,120]
[320757035,1711546268184,-531.42,0.0005589,120]
[320757036,1711546268195,-722.74,0.0005589,120]
[320757037,1711546268206,-500.0,0.0005589,120]
[320757038,1711546268217,-1302.25,0.0005589,120]
[320757039,1711546268230,-500.0,0.0005589,120]
[320757040,1711546268241,-500.0,0.0005589,120]
[320757041,1711546268252,-507.66,0.0005589,120]
[320757042,1711546268263,-1249.7,0.0005589,120]
[320757043,1711546268274,-500.0,0.0005589,120]
[320757044,1711546268284,-629.16,0.0005589,120]
[320757045,1711546268294,-684.28,0.0005589,120]
[320757046,1711546268304,-536.56,0.0005589,120]
[320757047,1711546268314,-653.48,0.0005589,120]
[320757048,1711546268324,-500.0,0.0005589,120]
[320757049,1711546268335,-500.0,0.0005589,120]
[320757050,1711546268345,-500.0,0.0005589,120]
[320757051,1711546268356,-500.0,0.0005589,120]
[320757052,1711546268370,-500.0,0.0005589,120]
[320757053,1711546268383,-1486.24,0.0005589,120]
[320757054,1711546268393,-1283.94,0.0005589,120]
[320757055,1711546268403,-500.0,0.0005589,120]
[320757056,1711546268415,-500.0,0.0005589,120]
[320757057,1711546268426,-913.76,0.0005589,120]
[320757058,1711546268436,-500.0,0.0005589,120]
[320757059,1711546268445,-754.35,0.0005589,120]
[320757060,1711546268455,-500.0,0.0005589,120]
[320757061,1711546268466,-21873.43,0.0005589,120]
[320757062,1711546268476,-860.18,0.0005589,120]
[320757063,1711546268486,-1916.66,0.0005589,120]
[320757064,1711546268497,-500.0,0.0005589,120]
[320757065,1711546268507,-2119.71,0.0005589,120]
[320757066,1711546268517,-822.03,0.0005589,120]
[320757067,1711546268527,-500.0,0.0005589,120]
[320757068,1711546268537,-500.0,0.0005589,120]
[320757069,1711546268546,-619.23,0.0005589,120]
[320757070,1711546268556,-1003.22,0.0005589,120]
[320757071,1711546268565,-682.74,0.0005589,120]
[320757072,1711546268574,-500.0,0.0005589,120]
[320757073,1711546268585,-4248.24,0.0005589,120]
[320757074,1711546268595,-52410.75,0.0005589,120]
[320757075,1711546268604,-1019.67,0.0005589,120]
[320757076,1711546268614,-3268.76,0.0005589,120]
[320757077,1711546268630,-849.29,0.0005589,120]
[320757078,1711546268640,-3365.88,0.0005589,120]
[320757079,1711546268650,-500.0,0.0005589,120]
[320757080,1711546268660,-2493.43,0.0005589,120]
[320757081,1711546268670,-6502.27,0.0005589,120]
[320757082,1711546268679,-1118.56,0.0005589,120]
[320757083,1711546268690,-1903.01,0.0005589,120]
[320757084,1711546268699,-4032.81,0.0005589,120]
[320757085,1711546268709,-500.0,0.0005589,120]
[320757086,1711546268718,-3489.96,0.0005589,120]
[320757087,1711546268728,-1655.33,0.0005589,120]
[320757088,1711546268738,-2377.98,0.0005589,120]
[320757089,1711546268748,-2781.46,0.0005589,120]
[320757090,1711546268759,-809.96,0.0005589,120]
[320757091,1711546268769,-2002.63,0.0005589,120]
[320757092,1711546268779,-3535.71,0.0005589,120]
[320757093,1711546268789,-14759.77,0.0005589,120]
[320757094,1711546268799,-791.97,0.0005589,120]
[320757095,1711546268809,-1559.07,0.0005589,120]
[320757096,1711546268819,-3176.79,0.0005589,120]
[320757097,1711546268829,-500.0,0.0005589,120]
[320757098,1711546268839,-675.25,0.0005589,120]
[320757099,1711546268849,-2335.04,0.0005589,120]
[320757100,1711546268858,-1775.74,0.0005589,120]
[320757101,1711546268870,-4505.08,0.0005589,120]
[320757102,1711546268880,-500.0,0.0005589,120]
[320757103,1711546268890,-10822.87,0.0005589,120]
[320757104,1711546268900,-780.73,0.0005589,120]
[320757105,1711546268910,-619.17,0.0005589,120]
[320757106,1711546268920,-703.7,0.0005589,120]
[320757107,1711546268929,-4740.44,0.0005589,120]
[320757108,1711546268940,-1735.73,0.0005589,120]
[320757109,1711546268950,-4178.06,0.0005589,120]
[320757110,1711546268959,-2218.02,0.0005589,120]
[320757111,1711546268969,-557.85,0.0005589,120]
[320757112,1711546268979,-1843.95,0.0005589,120]
[320757113,1711546268989,-2753.07,0.0005589,120]
[320757114,1711546268999,-1883.62,0.0005589,120]
[320757115,1711546269009,-4513.67,0.0005589,120]
[320757116,1711546269019,-500.0,0.0005589,120]
[320757117,1711546269029,-30769.88,0.0005589,120]
[320757118,1711546269039,-1877.07,0.0005589,120]
[320757119,1711546269049,-500.0,0.0005589,120]
[320757120,1711546269059,-1576.26,0.0005589,120]
[320757121,1711546269069,-990.99,0.0005589,120]
[320757122,1711546269079,-1131.33,0.0005589,120]
[320757123,1711546269089,-500.0,0.0005589,120]
[320757124,1711546269098,-3993.02,0.0005589,120]
[320757125,1711546269108,-660.85,0.0005589,120]
[320757126,1711546269121,-1247.94,0.0005589,120]
[320757127,1711546269130,-3155.02,0.0005589,120]
[320757128,1711546269140,-9955.42,0.0005589,120]
[320757129,1711546269150,-500.0,0.0005589,120]
[320757130,1711546269159,-605.7,0.0005589,120]
[320757131,1711546269170,-3326.33,0.0005589,120]
[320757132,1711546269180,-1396.99,0.0005589,120]
[320757133,1711546269190,-6861.65,0.0005589,120]
[320757134,1711546269199,-500.0,0.0005589,120]
[320757135,1711546269210,-8987.1,0.0005589,120]
[320757136,1711546269219,-4570.49,0.0005589,120]
[320757137,1711546269229,-4124.1,0.0005589,120]
[320757138,1711546269239,-595.93,0.0005589,120]
[320757139,1711546269249,-531.49,0.0005589,120]
[320757140,1711546269259,-2890.55,0.0005589,120]
[320757141,1711546269269,-500.0,0.0005589,7]
[320757142,1711546269278,-13989.32,0.0005589,120]
[320757143,1711546269288,-500.0,0.0005589,120]
[320757144,1711546269297,-1228.94,0.0005589,120]
[320757145,1711546269307,-4679.66,0.0005589,120]
[320757146,1711546269317,-500.0,0.0005589,120]
[320757147,1711546269328,-3271.7,0.0005589,120]
[320757148,1711546269338,-41795.23,0.0005589,120]
[320757149,1711546269348,-2282.57,0.0005589,120]
[320757150,1711546269358,-5627.49,0.0005589,120]
[320757151,1711546269370,-500.0,0.0005589,120]
[320757152,1711546269379,-500.0,0.0005589,120]
[320757153,1711546269389,-569.04,0.0005589,120]
[320757154,1711546269398,-761.08,0.0005589,120]
[320757155,1711546269408,-5592.75,0.0005589,120]
[320757156,1711546269420,-500.0,0.0005589,120]
[320757157,1711546269429,-3670.01,0.0005589,120]
[320757158,1711546269438,-3639.14,0.0005589,120]
[320757159,1711546269526,-7743.51,0.0005589,120]
[320757160,1711546269536,-500.0,0.0005589,120]
[320757161,1711546269546,-2679.29,0.0005589,120]
[320757162,1711546269555,-657.93,0.0005589,120]
[320757163,1711546269565,-1839.6,0.0005589,120]
[320757164,1711546269575,-1315.57,0.0005589,120]
[320757165,1711546269584,-4254.04,0.0005589,120]
[320757166,1711546269594,-500.0,0.0005589,120]
[320757167,1711546269604,-500.0,0.0005589,85]
[320757168,1711546269613,-10846.92,0.0005589,120]
[320757169,1711546269625,-1768.16,0.0005589,120]
[320757170,1711546269634,-22986.29,0.0005589,120]
[320757171,1711546269644,-500.0,0.0005589,120]
[320757172,1711546269654,-3432.06,0.0005589,120]
[320757173,1711546269664,-3495.69,0.0005589,120]
[320757174,1711546269674,-1982.01,0.0005589,120]
[320757175,1711546269684,-11789.75,0.0005589,120]
[320757176,1711546269694,-3095.23,0.0005589,120]
[320757177,1711546269703,-1112.01,0.0005589,120]
[320757178,1711546269713,-1435.37,0.0005589,120]
[320757179,1711546269722,-452.41236673,0.0005589,120]
[320757180,1711546269732,-1604.22,0.0005589,120]
[320757181,1711546269742,-749.83,0.0005589,120]
[320757182,1711546269752,-10818.47,0.0005589,120]